[Event "Titled Tuesday Blitz May 17 Early 2022"]
[White "Shimanov, Aleksandr"]
[Black "Bachmann, Axel"]
[WhiteFideId "4198603"]
[BlackFideId "3700488"]
[WhiteElo "2605"]
[BlackElo "2587"]
[Result "1-0"]
[Round "09"]
[TimeControl "180+1"]
[Date "2022.05.17"]
[WhiteClock "0:00:04"]
[BlackClock "0:00:07"]

1. d4 {[%clk 0:03:00]}  Nf6 {[%clk 0:02:55]} 2. Nc3 {[%clk 0:03:00]}  g6 {[%clk 0:02:54]} 3. Bf4 {[%clk 0:02:59]}  Bg7 {[%clk 0:02:52]} 4. e4 {[%clk 0:02:53]}  d6 {[%clk 0:02:51]} 5. Nf3 {[%clk 0:02:52]}  O-O {[%clk 0:02:48]} 6. Qd2 {[%clk 0:02:50]}  c6 {[%clk 0:02:42]} 7. Bd3 {[%clk 0:02:49]}  Bg4 {[%clk 0:02:35]} 8. O-O-O {[%clk 0:02:34]}  Nbd7 {[%clk 0:02:25]} 9. Bh6 {[%clk 0:02:26]}  e5 {[%clk 0:02:20]} 10. Bxg7 {[%clk 0:02:08]}  Kxg7 {[%clk 0:02:21]} 11. Be2 {[%clk 0:02:09]}  Qa5 {[%clk 0:02:17]} 12. Kb1 {[%clk 0:02:02]}  b5 {[%clk 0:02:11]} 13. a3 {[%clk 0:01:28]}  Rab8 {[%clk 0:02:00]} 14. h3 {[%clk 0:01:11]}  b4 {[%clk 0:01:52]} 15. axb4 {[%clk 0:00:53]}  Qxb4 {[%clk 0:01:53]} 16. b3 {[%clk 0:00:53]}  Be6 {[%clk 0:01:26]} 17. dxe5 {[%clk 0:00:27]}  dxe5 {[%clk 0:01:08]} 18. Na2 {[%clk 0:00:26]}  Qa3 {[%clk 0:01:06]} 19. Ng5 {[%clk 0:00:22]}  Bxb3 {[%clk 0:00:50]} 20. cxb3 {[%clk 0:00:22]}  Rxb3+ {[%clk 0:00:50]} 21. Ka1 {[%clk 0:00:22]}  Rfb8 {[%clk 0:00:43]} 22. Rb1 {[%clk 0:00:21]}  Nc5 {[%clk 0:00:40]} 23. Bc4 {[%clk 0:00:22]}  Nfxe4 {[%clk 0:00:25]} 24. Nxe4 {[%clk 0:00:19]}  Nxe4 {[%clk 0:00:25]} 25. Qc2 {[%clk 0:00:14]}  Rxb1+ {[%clk 0:00:08]} 26. Rxb1 {[%clk 0:00:15]}  Rxb1+ {[%clk 0:00:08]} 27. Kxb1 {[%clk 0:00:16]}  Nf6 {[%clk 0:00:04]} 28. Bb3 {[%clk 0:00:14]}  Qd6 {[%clk 0:00:04]} 29. Nc3 {[%clk 0:00:13]}  Qd4 {[%clk 0:00:04]} 30. Kc1 {[%clk 0:00:08]}  a5 {[%clk 0:00:04]} 31. Qd2 {[%clk 0:00:08]}  Qc5 {[%clk 0:00:04]} 32. Kb2 {[%clk 0:00:08]}  Qb4 {[%clk 0:00:03]} 33. Nb1 {[%clk 0:00:08]}  Qe4 {[%clk 0:00:02]} 34. f3 {[%clk 0:00:08]}  Qh4 {[%clk 0:00:03]} 35. Qxa5 {[%clk 0:00:06]}  Qg3 {[%clk 0:00:03]} 36. Qd2 {[%clk 0:00:07]}  e4 {[%clk 0:00:03]} 37. fxe4 {[%clk 0:00:07]}  Qe5+ {[%clk 0:00:02]} 38. Qc3 {[%clk 0:00:06]}  Qxe4 {[%clk 0:00:02]} 39. g4 {[%clk 0:00:06]}  Qg2+ {[%clk 0:00:03]} 40. Nd2 {[%clk 0:00:06]}  h6 {[%clk 0:00:03]} 41. Bc2 {[%clk 0:00:06]}  Qf2 {[%clk 0:00:02]} 42. Ne4 {[%clk 0:00:07]}  Qf4 {[%clk 0:00:03]} 43. Nxf6 {[%clk 0:00:04]}  Qxf6 {[%clk 0:00:04]} 44. Kb3 {[%clk 0:00:04]}  Qxc3+ {[%clk 0:00:03]} 45. Kxc3 {[%clk 0:00:05]}  Kf6 {[%clk 0:00:04]} 46. Bb3 {[%clk 0:00:05]}  Kg5 {[%clk 0:00:05]} 47. Bxf7 {[%clk 0:00:05]}  h5 {[%clk 0:00:05]} 48. Be6 {[%clk 0:00:05]}  Kh4 {[%clk 0:00:05]} 49. Kd4 {[%clk 0:00:03]}  Kg3 {[%clk 0:00:06]} 50. Ke5 {[%clk 0:00:03]}  h4 {[%clk 0:00:06]} 51. g5 {[%clk 0:00:03]}  c5 {[%clk 0:00:06]} 52. Kf6 {[%clk 0:00:04]}  c4 {[%clk 0:00:07]} 53. Bxc4 {[%clk 0:00:04]} 1-0


[Site "https://www.chess.com"]

[Event "Titled Tuesday Blitz May 17 Early 2022"]
[White "Shuvalova, Polina"]
[Black "Xu, Yi"]
[WhiteFideId "24171760"]
[BlackFideId "8605564"]
[WhiteElo "2355"]
[BlackElo "2471"]
[Result "0-1"]
[Round "09"]
[TimeControl "180+1"]
[Date "2022.05.17"]
[WhiteClock "0:00:08"]
[BlackClock "0:00:05"]

1. e4 {[%clk 0:03:00]}  c5 {[%clk 0:02:58]} 2. Nc3 {[%clk 0:02:59]}  Nc6 {[%clk 0:02:56]} 3. Bb5 {[%clk 0:02:58]}  Nd4 {[%clk 0:02:55]} 4. Nf3 {[%clk 0:02:57]}  g6 {[%clk 0:02:53]} 5. O-O {[%clk 0:02:54]}  Bg7 {[%clk 0:02:54]} 6. Re1 {[%clk 0:02:53]}  Nxb5 {[%clk 0:02:50]} 7. Nxb5 {[%clk 0:02:53]}  d6 {[%clk 0:02:49]} 8. d4 {[%clk 0:02:52]}  a6 {[%clk 0:02:48]} 9. Nc3 {[%clk 0:02:52]}  cxd4 {[%clk 0:02:48]} 10. Nxd4 {[%clk 0:02:53]}  Nf6 {[%clk 0:02:48]} 11. h3 {[%clk 0:02:52]}  O-O {[%clk 0:02:46]} 12. Bg5 {[%clk 0:02:50]}  h6 {[%clk 0:02:41]} 13. Bh4 {[%clk 0:02:48]}  e5 {[%clk 0:02:18]} 14. Nb3 {[%clk 0:02:32]}  Be6 {[%clk 0:02:18]} 15. Qd3 {[%clk 0:02:20]}  g5 {[%clk 0:02:15]} 16. Bg3 {[%clk 0:02:02]}  Qc7 {[%clk 0:02:15]} 17. Nd2 {[%clk 0:01:59]}  b5 {[%clk 0:02:12]} 18. a3 {[%clk 0:01:57]}  Rfc8 {[%clk 0:01:57]} 19. Rad1 {[%clk 0:01:56]}  Rab8 {[%clk 0:01:54]} 20. Nf1 {[%clk 0:01:54]}  b4 {[%clk 0:01:48]} 21. axb4 {[%clk 0:01:54]}  Rxb4 {[%clk 0:01:49]} 22. Qxd6 {[%clk 0:00:47]}  Qxd6 {[%clk 0:01:48]} 23. Rxd6 {[%clk 0:00:48]}  Rxb2 {[%clk 0:01:48]} 24. Nd5 {[%clk 0:00:44]}  Bxd5 {[%clk 0:01:08]} 25. exd5 {[%clk 0:00:44]}  Nh5 {[%clk 0:01:09]} 26. Bxe5 {[%clk 0:00:40]}  Bxe5 {[%clk 0:01:06]} 27. Rxe5 {[%clk 0:00:41]}  Rcxc2 {[%clk 0:01:07]} 28. Rxh6 {[%clk 0:00:34]}  f6 {[%clk 0:01:01]} 29. Re8+ {[%clk 0:00:25]}  Kf7 {[%clk 0:01:01]} 30. Re6 {[%clk 0:00:25]}  Rxf2 {[%clk 0:00:42]} 31. Rxh5 {[%clk 0:00:23]}  Rxg2+ {[%clk 0:00:42]} 32. Kh1 {[%clk 0:00:24]}  Rgf2 {[%clk 0:00:39]} 33. Re1 {[%clk 0:00:24]}  Rb8 {[%clk 0:00:31]} 34. Rh7+ {[%clk 0:00:24]}  Kg6 {[%clk 0:00:31]} 35. Rd7 {[%clk 0:00:24]}  Rb3 {[%clk 0:00:27]} 36. Kg1 {[%clk 0:00:19]}  Rff3 {[%clk 0:00:25]} 37. d6 {[%clk 0:00:19]}  Rxh3 {[%clk 0:00:26]} 38. Rde7 {[%clk 0:00:19]}  Rhd3 {[%clk 0:00:18]} 39. d7 {[%clk 0:00:18]}  Rb4 {[%clk 0:00:18]} 40. R1e3 {[%clk 0:00:15]}  Rd1 {[%clk 0:00:18]} 41. Re1 {[%clk 0:00:15]}  Rd3 {[%clk 0:00:18]} 42. R7e6 {[%clk 0:00:09]}  Rxd7 {[%clk 0:00:16]} 43. Rxa6 {[%clk 0:00:10]}  Rg4+ {[%clk 0:00:16]} 44. Kf2 {[%clk 0:00:10]}  Rf4+ {[%clk 0:00:17]} 45. Kg2 {[%clk 0:00:10]}  Rd3 {[%clk 0:00:15]} 46. Re3 {[%clk 0:00:09]}  Rd1 {[%clk 0:00:14]} 47. Ng3 {[%clk 0:00:09]}  Rd2+ {[%clk 0:00:14]} 48. Re2 {[%clk 0:00:08]}  Rd3 {[%clk 0:00:12]} 49. Rf2 {[%clk 0:00:06]}  Rxf2+ {[%clk 0:00:06]} 50. Kxf2 {[%clk 0:00:07]}  Rb3 {[%clk 0:00:07]} 51. Ne4 {[%clk 0:00:07]}  Kf5 {[%clk 0:00:04]} 52. Nxf6 {[%clk 0:00:08]}  g4 {[%clk 0:00:05]} 53. Nd5 {[%clk 0:00:07]}  Rb2+ {[%clk 0:00:04]} 54. Kg3 {[%clk 0:00:06]}  Rb3+ {[%clk 0:00:05]} 55. Kg2 {[%clk 0:00:07]}  Rb2+ {[%clk 0:00:05]} 56. Kf1 {[%clk 0:00:08]}  Ke4 {[%clk 0:00:04]} 57. Nf6+ {[%clk 0:00:07]}  Kf3 {[%clk 0:00:05]} 58. Ra3+ {[%clk 0:00:07]}  Kf4 {[%clk 0:00:05]} 59. Ra4+ {[%clk 0:00:07]}  Kf3 {[%clk 0:00:05]} 60. Nxg4 {[%clk 0:00:08]}  Rb1# {[%clk 0:00:05]} 0-1


[Site "https://www.chess.com"]

[Event "Titled Tuesday Blitz May 17 Early 2022"]
[White "Sirosh, Ilja"]
[Black "Tatarinov, Dmitry"]
[WhiteFideId "4500458"]
[BlackFideId "24160067"]
[WhiteElo "2241"]
[BlackElo "2302"]
[Result "1-0"]
[Round "09"]
[TimeControl "180+1"]
[Date "2022.05.17"]
[WhiteClock "0:00:24"]
[BlackClock "0:00:22"]

1. e4 {[%clk 0:03:00]}  c6 {[%clk 0:02:51]} 2. d4 {[%clk 0:02:59]}  d5 {[%clk 0:02:52]} 3. e5 {[%clk 0:03:00]}  Bf5 {[%clk 0:02:52]} 4. Bd3 {[%clk 0:03:00]}  e6 {[%clk 0:02:53]} 5. Bxf5 {[%clk 0:02:58]}  exf5 {[%clk 0:02:53]} 6. Ne2 {[%clk 0:02:55]}  Na6 {[%clk 0:02:52]} 7. Qd3 {[%clk 0:02:54]}  g6 {[%clk 0:02:52]} 8. O-O {[%clk 0:02:52]}  Nc7 {[%clk 0:02:52]} 9. c4 {[%clk 0:02:47]}  dxc4 {[%clk 0:02:51]} 10. Qxc4 {[%clk 0:02:47]}  Ne7 {[%clk 0:02:52]} 11. Bg5 {[%clk 0:02:45]}  Qd5 {[%clk 0:02:51]} 12. Qc2 {[%clk 0:02:37]}  Ne6 {[%clk 0:02:43]} 13. Bf6 {[%clk 0:02:29]}  Rg8 {[%clk 0:02:43]} 14. Nbc3 {[%clk 0:02:26]}  Qd7 {[%clk 0:02:43]} 15. Rfd1 {[%clk 0:02:10]}  Nd5 {[%clk 0:02:39]} 16. Nxd5 {[%clk 0:02:06]}  cxd5 {[%clk 0:02:40]} 17. Qb3 {[%clk 0:01:46]}  Be7 {[%clk 0:02:39]} 18. Nc3 {[%clk 0:01:43]}  Rd8 {[%clk 0:02:30]} 19. Bxe7 {[%clk 0:01:34]}  Kxe7 {[%clk 0:02:30]} 20. Qa3+ {[%clk 0:01:33]}  Ke8 {[%clk 0:02:27]} 21. Rac1 {[%clk 0:01:29]}  b6 {[%clk 0:02:23]} 22. Qb4 {[%clk 0:01:27]}  g5 {[%clk 0:02:14]} 23. Nb5 {[%clk 0:01:26]}  Qe7 {[%clk 0:02:04]} 24. Nd6+ {[%clk 0:01:23]}  Kf8 {[%clk 0:02:04]} 25. Qb3 {[%clk 0:01:15]}  Rg6 {[%clk 0:01:48]} 26. Nxf5 {[%clk 0:01:13]}  Qd7 {[%clk 0:01:47]} 27. Nd6 {[%clk 0:01:11]}  Nf4 {[%clk 0:01:46]} 28. Qf3 {[%clk 0:01:07]}  Kg7 {[%clk 0:01:37]} 29. Rc2 {[%clk 0:01:03]}  Rf8 {[%clk 0:01:33]} 30. Rdc1 {[%clk 0:01:02]}  Rxd6 {[%clk 0:01:26]} 31. exd6 {[%clk 0:01:03]}  Qxd6 {[%clk 0:01:27]} 32. g3 {[%clk 0:01:03]}  Ne6 {[%clk 0:01:22]} 33. Qe3 {[%clk 0:01:02]}  Rd8 {[%clk 0:01:01]} 34. Rc6 {[%clk 0:01:01]}  Qe7 {[%clk 0:00:56]} 35. Qe5+ {[%clk 0:00:57]}  Qf6 {[%clk 0:00:56]} 36. f4 {[%clk 0:00:40]}  gxf4 {[%clk 0:00:56]} 37. gxf4 {[%clk 0:00:41]}  Qxe5 {[%clk 0:00:54]} 38. dxe5 {[%clk 0:00:32]}  Nxf4 {[%clk 0:00:54]} 39. Rf1 {[%clk 0:00:29]}  Ne6 {[%clk 0:00:47]} 40. Rd6 {[%clk 0:00:30]}  Rxd6 {[%clk 0:00:36]} 41. exd6 {[%clk 0:00:31]}  Kf8 {[%clk 0:00:35]} 42. Rf5 {[%clk 0:00:29]}  d4 {[%clk 0:00:35]} 43. Rh5 {[%clk 0:00:30]}  Kg7 {[%clk 0:00:26]} 44. d7 {[%clk 0:00:28]}  Kf6 {[%clk 0:00:23]} 45. Rxh7 {[%clk 0:00:26]}  Ke7 {[%clk 0:00:24]} 46. Kf2 {[%clk 0:00:24]}  Nc5 {[%clk 0:00:22]} 47. Rxf7+ {[%clk 0:00:22]}  Kd8 {[%clk 0:00:19]} 48. h4 {[%clk 0:00:21]}  Nxd7 {[%clk 0:00:16]} 49. Rxd7+ {[%clk 0:00:21]}  Kxd7 {[%clk 0:00:16]} 50. Ke2 {[%clk 0:00:21]}  Ke6 {[%clk 0:00:17]} 51. Kd3 {[%clk 0:00:22]}  Kd5 {[%clk 0:00:18]} 52. h5 {[%clk 0:00:21]}  Ke5 {[%clk 0:00:18]} 53. h6 {[%clk 0:00:22]}  Kf6 {[%clk 0:00:19]} 54. Kxd4 {[%clk 0:00:22]}  Kg6 {[%clk 0:00:20]} 55. Kd5 {[%clk 0:00:23]}  Kxh6 {[%clk 0:00:21]} 56. Kc6 {[%clk 0:00:23]}  b5 {[%clk 0:00:22]} 57. Kxb5 {[%clk 0:00:23]}  Kg6 {[%clk 0:00:22]} 58. Ka6 {[%clk 0:00:24]} 1-0


[Site "https://www.chess.com"]

[Event "Titled Tuesday Blitz May 17 Early 2022"]
[White "Sokolovsky, Yahli"]
[Black "Chigaev, Maksim"]
[WhiteFideId "2820242"]
[BlackFideId "4108116"]
[WhiteElo "1770"]
[BlackElo "2457"]
[Result "1/2-1/2"]
[Round "09"]
[TimeControl "180+1"]
[Date "2022.05.17"]
[WhiteClock "0:00:46"]
[BlackClock "0:00:34"]

1. b3 {[%clk 0:03:00]}  Nf6 {[%clk 0:02:58]} 2. Bb2 {[%clk 0:03:01]}  e6 {[%clk 0:02:58]} 3. e3 {[%clk 0:03:02]}  d5 {[%clk 0:02:55]} 4. Nf3 {[%clk 0:03:02]}  Bd6 {[%clk 0:02:55]} 5. d4 {[%clk 0:03:02]}  O-O {[%clk 0:02:55]} 6. Bd3 {[%clk 0:03:02]}  b6 {[%clk 0:02:55]} 7. O-O {[%clk 0:03:02]}  Ba6 {[%clk 0:02:55]} 8. Bxa6 {[%clk 0:02:59]}  Nxa6 {[%clk 0:02:55]} 9. Nbd2 {[%clk 0:02:58]}  c5 {[%clk 0:02:56]} 10. c4 {[%clk 0:02:47]}  Qe7 {[%clk 0:02:55]} 11. Qe2 {[%clk 0:02:30]}  Nc7 {[%clk 0:02:50]} 12. e4 {[%clk 0:02:25]}  dxe4 {[%clk 0:02:49]} 13. Nxe4 {[%clk 0:02:26]}  Nxe4 {[%clk 0:02:50]} 14. Qxe4 {[%clk 0:02:27]}  h6 {[%clk 0:02:47]} 15. Rfe1 {[%clk 0:02:22]}  Rad8 {[%clk 0:02:45]} 16. Rad1 {[%clk 0:02:20]}  Rfe8 {[%clk 0:02:45]} 17. Qg4 {[%clk 0:02:13]}  f5 {[%clk 0:02:23]} 18. Qh5 {[%clk 0:02:11]}  Qf7 {[%clk 0:02:18]} 19. Qxf7+ {[%clk 0:02:06]}  Kxf7 {[%clk 0:02:19]} 20. Ne5+ {[%clk 0:02:01]}  Bxe5 {[%clk 0:02:19]} 21. dxe5 {[%clk 0:02:02]}  Na6 {[%clk 0:02:17]} 22. a3 {[%clk 0:01:59]}  Nb8 {[%clk 0:02:15]} 23. f4 {[%clk 0:01:49]}  Nc6 {[%clk 0:02:14]} 24. Kf2 {[%clk 0:01:50]}  g5 {[%clk 0:02:14]} 25. Bc3 {[%clk 0:01:35]}  Rxd1 {[%clk 0:01:54]} 26. Rxd1 {[%clk 0:01:35]}  Rd8 {[%clk 0:01:54]} 27. Rxd8 {[%clk 0:01:35]}  Nxd8 {[%clk 0:01:55]} 28. g3 {[%clk 0:01:33]}  Kg6 {[%clk 0:01:54]} 29. b4 {[%clk 0:01:22]}  Kh5 {[%clk 0:01:29]} 30. Kf3 {[%clk 0:01:21]}  gxf4 {[%clk 0:01:16]} 31. Kxf4 {[%clk 0:01:19]}  Nc6 {[%clk 0:01:16]} 32. b5 {[%clk 0:00:57]}  Nd8 {[%clk 0:01:02]} 33. a4 {[%clk 0:00:56]}  Nb7 {[%clk 0:00:51]} 34. h3 {[%clk 0:00:55]}  Kg6 {[%clk 0:00:51]} 35. Bd2 {[%clk 0:00:55]}  h5 {[%clk 0:00:50]} 36. Bc3 {[%clk 0:00:52]}  Kh6 {[%clk 0:00:40]} 37. Bd2 {[%clk 0:00:52]}  Kg6 {[%clk 0:00:36]} 38. Be1 {[%clk 0:00:53]}  Na5 {[%clk 0:00:30]} 39. Bxa5 {[%clk 0:00:52]}  bxa5 {[%clk 0:00:31]} 40. h4 {[%clk 0:00:44]}  Kh6 {[%clk 0:00:31]} 41. Ke3 {[%clk 0:00:45]}  Kg7 {[%clk 0:00:32]} 42. Kf4 {[%clk 0:00:46]}  Kg6 {[%clk 0:00:32]} 43. Ke3 {[%clk 0:00:46]}  Kf7 {[%clk 0:00:33]} 44. Kf4 {[%clk 0:00:47]}  Kg6 {[%clk 0:00:34]} 45. Ke3 {[%clk 0:00:47]}  Kf7 {[%clk 0:00:34]} 46. Kf4 {[%clk 0:00:46]}  Kg6 {[%clk 0:00:34]} 1/2-1/2


[Site "https://www.chess.com"]

[Event "Titled Tuesday Blitz May 17 Early 2022"]
[White "Tarigan, Gilbert Elroy"]
[Black "Khabinets, Ivan"]
[WhiteFideId "7108133"]
[BlackFideId "14115980"]
[WhiteElo "1908"]
[BlackElo "2114"]
[Result "1-0"]
[Round "09"]
[TimeControl "180+1"]
[Date "2022.05.17"]
[WhiteClock "0:00:49"]
[BlackClock "0:00:06"]

1. e4 {[%clk 0:03:00]}  c5 {[%clk 0:02:15]} 2. Nf3 {[%clk 0:02:59]}  d6 {[%clk 0:02:16]} 3. d4 {[%clk 0:02:59]}  cxd4 {[%clk 0:02:17]} 4. Nxd4 {[%clk 0:03:00]}  Nf6 {[%clk 0:02:17]} 5. Nc3 {[%clk 0:03:00]}  a6 {[%clk 0:02:18]} 6. Bg5 {[%clk 0:02:59]}  Nbd7 {[%clk 0:02:18]} 7. f4 {[%clk 0:02:59]}  h6 {[%clk 0:02:17]} 8. Bxf6 {[%clk 0:02:46]}  Nxf6 {[%clk 0:02:17]} 9. Qf3 {[%clk 0:02:43]}  e5 {[%clk 0:02:15]} 10. Nf5 {[%clk 0:02:41]}  Bxf5 {[%clk 0:01:55]} 11. exf5 {[%clk 0:02:42]}  Qc7 {[%clk 0:01:56]} 12. O-O-O {[%clk 0:02:37]}  Be7 {[%clk 0:01:55]} 13. g4 {[%clk 0:02:33]}  exf4 {[%clk 0:01:44]} 14. Bg2 {[%clk 0:02:34]}  O-O {[%clk 0:01:32]} 15. h4 {[%clk 0:02:26]}  Rac8 {[%clk 0:00:50]} 16. g5 {[%clk 0:02:25]}  Nd7 {[%clk 0:00:50]} 17. f6 {[%clk 0:02:16]}  Nxf6 {[%clk 0:00:45]} 18. gxf6 {[%clk 0:02:13]}  Bxf6 {[%clk 0:00:46]} 19. Qxb7 {[%clk 0:01:57]}  Qa5 {[%clk 0:00:42]} 20. Rd5 {[%clk 0:01:49]}  Rc5 {[%clk 0:00:37]} 21. Rxc5 {[%clk 0:01:44]}  Qxc5 {[%clk 0:00:38]} 22. Qd5 {[%clk 0:01:39]}  Qe3+ {[%clk 0:00:36]} 23. Qd2 {[%clk 0:01:38]}  Qb6 {[%clk 0:00:24]} 24. Bd5 {[%clk 0:01:25]}  Bd4 {[%clk 0:00:20]} 25. Kb1 {[%clk 0:01:22]}  Rc8 {[%clk 0:00:21]} 26. Bb3 {[%clk 0:01:20]}  Qc6 {[%clk 0:00:20]} 27. Rd1 {[%clk 0:01:15]}  Be5 {[%clk 0:00:17]} 28. Nd5 {[%clk 0:01:11]}  Qb7 {[%clk 0:00:12]} 29. Nxf4 {[%clk 0:01:07]}  a5 {[%clk 0:00:10]} 30. a4 {[%clk 0:00:59]}  Rc4 {[%clk 0:00:08]} 31. Nd3 {[%clk 0:00:58]}  Rxh4 {[%clk 0:00:07]} 32. Nxe5 {[%clk 0:00:55]}  dxe5 {[%clk 0:00:07]} 33. Qd8+ {[%clk 0:00:53]}  Kh7 {[%clk 0:00:07]} 34. Qxh4 {[%clk 0:00:54]}  Qf3 {[%clk 0:00:07]} 35. Re1 {[%clk 0:00:52]}  f6 {[%clk 0:00:06]} 36. c3 {[%clk 0:00:49]}  Qd3+ {[%clk 0:00:06]} 37. Bc2 {[%clk 0:00:49]} 1-0


[Site "https://www.chess.com"]

[Event "Titled Tuesday Blitz May 17 Early 2022"]
[White "Timofeev, Artyom"]
[Black "Csonka, Balazs"]
[WhiteFideId "4140419"]
[BlackFideId "742910"]
[WhiteElo "2594"]
[BlackElo "2404"]
[Result "1/2-1/2"]
[Round "09"]
[TimeControl "180+1"]
[Date "2022.05.17"]
[WhiteClock "0:00:14"]
[BlackClock "0:00:05"]

1. e4 {[%clk 0:03:00]}  c6 {[%clk 0:02:58]} 2. d4 {[%clk 0:02:59]}  d5 {[%clk 0:02:58]} 3. e5 {[%clk 0:02:59]}  Bf5 {[%clk 0:02:55]} 4. Nf3 {[%clk 0:02:59]}  e6 {[%clk 0:02:55]} 5. Be2 {[%clk 0:03:00]}  c5 {[%clk 0:02:56]} 6. O-O {[%clk 0:02:59]}  Nc6 {[%clk 0:02:54]} 7. Nc3 {[%clk 0:02:57]}  cxd4 {[%clk 0:02:45]} 8. Nxd4 {[%clk 0:02:57]}  Nge7 {[%clk 0:02:34]} 9. Bb5 {[%clk 0:02:55]}  Bg6 {[%clk 0:02:25]} 10. Be3 {[%clk 0:02:48]}  a6 {[%clk 0:02:04]} 11. Bxc6+ {[%clk 0:02:48]}  Nxc6 {[%clk 0:02:05]} 12. Nxc6 {[%clk 0:02:46]}  bxc6 {[%clk 0:02:06]} 13. Na4 {[%clk 0:02:47]}  Qa5 {[%clk 0:02:04]} 14. b3 {[%clk 0:02:39]}  c5 {[%clk 0:01:55]} 15. c4 {[%clk 0:02:17]}  Rd8 {[%clk 0:01:41]} 16. Qe1 {[%clk 0:02:09]}  Qxe1 {[%clk 0:01:33]} 17. Rfxe1 {[%clk 0:02:09]}  d4 {[%clk 0:01:31]} 18. Bd2 {[%clk 0:02:07]}  Be7 {[%clk 0:01:23]} 19. f4 {[%clk 0:02:07]}  h5 {[%clk 0:01:22]} 20. g3 {[%clk 0:02:06]}  Bf5 {[%clk 0:01:18]} 21. Kg2 {[%clk 0:02:01]}  h4 {[%clk 0:01:17]} 22. Ba5 {[%clk 0:01:48]}  Rc8 {[%clk 0:01:12]} 23. Kf3 {[%clk 0:01:48]}  hxg3 {[%clk 0:01:08]} 24. hxg3 {[%clk 0:01:48]}  g5 {[%clk 0:01:00]} 25. Rh1 {[%clk 0:01:44]}  g4+ {[%clk 0:00:52]} 26. Kf2 {[%clk 0:01:43]}  Rh3 {[%clk 0:00:52]} 27. Rxh3 {[%clk 0:01:43]}  gxh3 {[%clk 0:00:53]} 28. Kf3 {[%clk 0:01:43]}  Bd8 {[%clk 0:00:36]} 29. Bd2 {[%clk 0:01:28]}  Kd7 {[%clk 0:00:35]} 30. g4 {[%clk 0:01:28]}  Bc2 {[%clk 0:00:31]} 31. Rh1 {[%clk 0:01:27]}  Kc6 {[%clk 0:00:31]} 32. Rxh3 {[%clk 0:01:22]}  Bb1 {[%clk 0:00:19]} 33. Rh8 {[%clk 0:00:59]}  Bxa2 {[%clk 0:00:11]} 34. Ba5 {[%clk 0:00:59]}  Bxb3 {[%clk 0:00:11]} 35. Nb2 {[%clk 0:00:23]}  Kd7 {[%clk 0:00:11]} 36. Bxd8 {[%clk 0:00:23]}  Rxd8 {[%clk 0:00:11]} 37. Rh7 {[%clk 0:00:24]}  Ke7 {[%clk 0:00:10]} 38. f5 {[%clk 0:00:24]}  exf5 {[%clk 0:00:06]} 39. gxf5 {[%clk 0:00:25]}  d3 {[%clk 0:00:06]} 40. e6 {[%clk 0:00:21]}  d2 {[%clk 0:00:07]} 41. Rxf7+ {[%clk 0:00:21]}  Ke8 {[%clk 0:00:07]} 42. Rc7 {[%clk 0:00:17]}  d1=Q+ {[%clk 0:00:07]} 43. Nxd1 {[%clk 0:00:17]}  Rxd1 {[%clk 0:00:04]} 44. Rxc5 {[%clk 0:00:17]}  Rd4 {[%clk 0:00:04]} 45. Rc8+ {[%clk 0:00:16]}  Ke7 {[%clk 0:00:04]} 46. c5 {[%clk 0:00:16]}  Bxe6 {[%clk 0:00:02]} 47. fxe6 {[%clk 0:00:14]}  Kxe6 {[%clk 0:00:03]} 48. Ke3 {[%clk 0:00:14]}  Rc4 {[%clk 0:00:04]} 49. Kd3 {[%clk 0:00:15]}  Rc1 {[%clk 0:00:04]} 50. Kd4 {[%clk 0:00:15]}  Kd7 {[%clk 0:00:04]} 51. Ra8 {[%clk 0:00:15]}  Kc7 {[%clk 0:00:03]} 52. Rxa6 {[%clk 0:00:14]}  Rd1+ {[%clk 0:00:04]} 53. Kc4 {[%clk 0:00:15]}  Rc1+ {[%clk 0:00:04]} 54. Kb5 {[%clk 0:00:15]}  Rb1+ {[%clk 0:00:04]} 55. Kc4 {[%clk 0:00:15]}  Rc1+ {[%clk 0:00:05]} 56. Kd5 {[%clk 0:00:16]}  Rd1+ {[%clk 0:00:05]} 57. Ke5 {[%clk 0:00:16]}  Re1+ {[%clk 0:00:05]} 58. Kd4 {[%clk 0:00:16]}  Rc1 {[%clk 0:00:04]} 59. Rf6 {[%clk 0:00:13]}  Rd1+ {[%clk 0:00:04]} 60. Kc4 {[%clk 0:00:13]}  Rc1+ {[%clk 0:00:05]} 61. Kd5 {[%clk 0:00:13]}  Rd1+ {[%clk 0:00:05]} 62. Kc4 {[%clk 0:00:13]}  Rc1+ {[%clk 0:00:05]} 63. Kd5 {[%clk 0:00:14]}  Rd1+ {[%clk 0:00:05]} 64. Kc4 {[%clk 0:00:14]} 1/2-1/2


[Site "https://www.chess.com"]

[Event "Titled Tuesday Blitz May 17 Early 2022"]
[White "Vakhlamov, Igor L."]
[Black "Indjic, Aleksandar"]
[WhiteFideId "24126748"]
[BlackFideId "911925"]
[WhiteElo "2401"]
[BlackElo "2616"]
[Result "0-1"]
[Round "09"]
[TimeControl "180+1"]
[Date "2022.05.17"]
[WhiteClock "0:00:04"]
[BlackClock "0:01:38"]

1. e4 {[%clk 0:03:00]}  d5 {[%clk 0:02:58]} 2. exd5 {[%clk 0:02:58]}  Qxd5 {[%clk 0:02:59]} 3. Nc3 {[%clk 0:02:57]}  Qd6 {[%clk 0:02:59]} 4. d4 {[%clk 0:02:56]}  Nf6 {[%clk 0:03:00]} 5. Bd3 {[%clk 0:02:55]}  a6 {[%clk 0:02:58]} 6. Nge2 {[%clk 0:02:53]}  Nc6 {[%clk 0:02:58]} 7. Bf4 {[%clk 0:02:53]}  Qd8 {[%clk 0:02:58]} 8. Ne4 {[%clk 0:02:50]}  Nd5 {[%clk 0:02:54]} 9. c3 {[%clk 0:02:46]}  Nxf4 {[%clk 0:02:53]} 10. Nxf4 {[%clk 0:02:47]}  e5 {[%clk 0:02:53]} 11. dxe5 {[%clk 0:02:47]}  Nxe5 {[%clk 0:02:53]} 12. Bc2 {[%clk 0:02:46]}  Bg4 {[%clk 0:02:47]} 13. f3 {[%clk 0:02:44]}  Qxd1+ {[%clk 0:02:45]} 14. Rxd1 {[%clk 0:02:45]}  Bd7 {[%clk 0:02:44]} 15. Bb3 {[%clk 0:02:33]}  O-O-O {[%clk 0:02:43]} 16. Kf2 {[%clk 0:02:30]}  h6 {[%clk 0:02:41]} 17. h4 {[%clk 0:02:29]}  f5 {[%clk 0:02:36]} 18. Rd5 {[%clk 0:01:16]}  fxe4 {[%clk 0:02:17]} 19. Rxe5 {[%clk 0:01:16]}  exf3 {[%clk 0:02:17]} 20. Ng6 {[%clk 0:00:12]}  fxg2 {[%clk 0:02:12]} 21. Rhe1 {[%clk 0:00:07]}  Bd6 {[%clk 0:02:08]} 22. Nxh8 {[%clk 0:00:06]}  Rxh8 {[%clk 0:01:42]} 23. Kxg2 {[%clk 0:00:06]}  Bxe5 {[%clk 0:01:41]} 24. Rxe5 {[%clk 0:00:07]}  Re8 {[%clk 0:01:40]} 25. Rxe8+ {[%clk 0:00:05]}  Bxe8 {[%clk 0:01:41]} 26. Kg3 {[%clk 0:00:05]}  Kd7 {[%clk 0:01:41]} 27. Bd5 {[%clk 0:00:05]}  b6 {[%clk 0:01:40]} 28. Be4 {[%clk 0:00:06]}  Ke6 {[%clk 0:01:40]} 29. Kf4 {[%clk 0:00:06]}  Kf6 {[%clk 0:01:40]} 30. a3 {[%clk 0:00:06]}  g5+ {[%clk 0:01:40]} 31. hxg5+ {[%clk 0:00:06]}  hxg5+ {[%clk 0:01:41]} 32. Kg3 {[%clk 0:00:07]}  Ke5 {[%clk 0:01:41]} 33. Bd3 {[%clk 0:00:08]}  a5 {[%clk 0:01:41]} 34. Bc2 {[%clk 0:00:09]}  Bd7 {[%clk 0:01:41]} 35. Bd3 {[%clk 0:00:09]}  Bf5 {[%clk 0:01:40]} 36. Bc4 {[%clk 0:00:06]}  Ke4 {[%clk 0:01:40]} 37. Kf2 {[%clk 0:00:04]}  Kf4 {[%clk 0:01:40]} 38. b4 {[%clk 0:00:03]}  g4 {[%clk 0:01:40]} 39. Bd5 {[%clk 0:00:02]}  Be4 {[%clk 0:01:40]} 40. Bc4 {[%clk 0:00:02]}  g3+ {[%clk 0:01:40]} 41. Kg1 {[%clk 0:00:03]}  Ke3 {[%clk 0:01:40]} 42. Bb5 {[%clk 0:00:03]}  Kd2 {[%clk 0:01:39]} 43. Bc6 {[%clk 0:00:04]}  Bxc6 {[%clk 0:01:39]} 44. b5 {[%clk 0:00:04]}  Bxb5 {[%clk 0:01:38]} 0-1


[Site "https://www.chess.com"]